fUSD/lending_fUSD_20260226
["ID","MTS","AMOUNT","RATE_DAILY","PERIOD"]
[406693861,1772089832243,-500.0,9.849e-05,2]
[406693862,1772089832252,-500.0,9.849e-05,2]
[406693863,1772089832261,-500.0,9.849e-05,2]
[406693864,1772089832270,-500.0,9.849e-05,2]
[406693865,1772089832280,-500.0,9.849e-05,2]
[406693866,1772089832290,-500.0,9.849e-05,2]
[406693867,1772089832299,-500.0,9.849e-05,2]
[406693868,1772089832311,-500.0,9.849e-05,2]
[406693869,1772089832321,-500.0,9.849e-05,2]
[406693870,1772089832330,-500.0,9.849e-05,2]
[406693871,1772089832341,-500.0,9.849e-05,2]
[406693872,1772089832351,-500.0,9.849e-05,2]
[406693873,1772089832360,-500.0,9.849e-05,2]
[406693874,1772089832370,-500.0,9.849e-05,2]
[406693875,1772089832380,-500.0,9.849e-05,2]
[406693876,1772089832390,-500.0,9.849e-05,2]
[406693877,1772089832401,-500.0,9.849e-05,2]
[406693878,1772089832410,-500.0,9.849e-05,2]
[406693879,1772089832420,-500.0,9.849e-05,2]
[406693880,1772089832430,-500.0,9.849e-05,2]
[406693881,1772089832440,-500.0,9.849e-05,2]
[406693882,1772089832450,-500.0,9.849e-05,2]
[406693883,1772089832460,-500.0,9.849e-05,2]
[406693884,1772089832470,-500.0,9.849e-05,2]
[406693885,1772089832480,-500.0,9.849e-05,2]
[406693886,1772089832489,-500.0,9.849e-05,2]
[406693887,1772089832499,-500.0,9.849e-05,2]
[406693888,1772089832509,-500.0,9.849e-05,2]
[406693889,1772089832519,-500.0,9.849e-05,2]
[406693890,1772089832529,-229.31441948,9.849e-05,2]
[406693891,1772089832540,-500.0,9.849e-05,2]
[406693892,1772089832550,-500.0,9.849e-05,2]
[406693893,1772089832561,-500.0,9.849e-05,2]
[406693894,1772089832571,-500.0,9.849e-05,2]
[406693895,1772089832582,-500.0,9.849e-05,2]
[406693896,1772089832592,-500.0,9.849e-05,2]
[406693897,1772089832601,-500.0,9.849e-05,2]
[406693898,1772089832611,-500.0,9.849e-05,2]
[406693899,1772089832621,-500.0,9.849e-05,2]
[406693900,1772089832630,-300.15505412,9.849e-05,2]
[406693901,1772089832640,-500.0,9.849e-05,2]
[406693902,1772089832649,-500.0,9.849e-05,2]
[406693903,1772089832658,-500.0,9.849e-05,2]
[406693904,1772089832668,-500.0,9.849e-05,2]
[406693905,1772089832677,-500.0,9.849e-05,2]
[406693906,1772089832687,-500.0,9.849e-05,2]
[406693907,1772089832699,-500.0,9.849e-05,2]
[406693908,1772089832709,-500.0,9.849e-05,2]
[406693909,1772089832718,-500.0,9.849e-05,2]
[406693910,1772089832728,-500.0,9.849e-05,2]
[406693911,1772089832737,-500.0,9.849e-05,2]
[406693912,1772089832747,-500.0,9.849e-05,2]
[406693913,1772089832756,-500.0,9.849e-05,2]
[406693914,1772089832765,-500.0,9.849e-05,2]
[406693915,1772089832774,-500.0,9.849e-05,2]
[406693916,1772089832783,-500.0,9.849e-05,2]
[406693917,1772089832793,-500.0,9.849e-05,2]
[406693918,1772089832803,-443.23641774,9.849e-05,2]
[406693919,1772089832814,-500.0,9.849e-05,2]
[406693920,1772089832824,-500.0,9.849e-05,2]
[406693921,1772089832835,-500.0,9.849e-05,2]
[406693922,1772089832848,-150.0,9.85e-05,2]
[406693923,1772089832858,-150.0,9.85e-05,2]
[406693924,1772089832868,-150.0,9.85e-05,2]
[406693925,1772089832878,-150.0,9.85e-05,2]
[406693926,1772089832887,-158.38923528,9.85e-05,2]
[406693927,1772089832897,-150.0,9.85e-05,2]
[406693928,1772089832907,-150.0,9.85e-05,2]
[406693929,1772089832916,-150.0,9.85e-05,2]
[406693930,1772089832926,-150.0,9.85e-05,2]
[406693931,1772089832935,-150.0,9.85e-05,2]
[406693932,1772089832946,-150.0,9.85e-05,2]
[406693933,1772089832956,-1256308.32504145,9.85e-05,2]
[406693934,1772089832968,-39225.13040164,9.85e-05,2]
[406693935,1772089832980,-3147.02692011,9.85e-05,2]
[406693936,1772089832991,-8884.04230804,9.85e-05,2]
[406693937,1772089833002,-4683.07115252,9.85e-05,2]
[406693948,1772089837890,-14123.908,9.85e-05,2]
[406693949,1772089838007,-1807.85877248,9.85e-05,2]
[406693950,1772089838070,-1621.32462817,9.85e-05,2]
[406693951,1772089838082,-976.09516634,9.85e-05,2]
[406694126,1772089840535,-1476.86864711,9.85e-05,2]
[406694127,1772089840548,-667746.34896214,9.85e-05,2]
[406694128,1772089840558,-564.0,9.873e-05,2]
[406694129,1772089840567,-1747.0,9.892e-05,2]
[406694130,1772089840577,-150.0,9.905e-05,2]
[406694131,1772089840588,-150.0,9.905e-05,2]
[406694132,1772089840597,-150.0,9.905e-05,2]
[406694133,1772089840607,-150.0,9.905e-05,2]
[406694134,1772089840617,-150.0,9.905e-05,2]
[406694135,1772089840627,-150.0,9.905e-05,2]
[406694136,1772089840636,-982.0,9.912e-05,2]
[406694137,1772089840646,-32883.6844,9.925e-05,2]
[406694138,1772089840655,-160.04767436,9.925e-05,2]
[406694139,1772089840665,-27963.56147862,9.95e-05,2]
[406694140,1772089840675,-150.0,9.96e-05,2]
[406694141,1772089840685,-150.0,9.96e-05,2]
[406694142,1772089840694,-150.0,9.96e-05,2]
[406694143,1772089840704,-150.0,9.96e-05,2]
[406694144,1772089840713,-29748.84,9.995e-05,2]
[406694145,1772089840723,-21467.0,0.0001,2]
[406694146,1772089840733,-215.10435237,0.0001,2]
[406694148,1772089840742,-150.0,0.00010014,2]
[406694150,1772089840752,-150.0,0.00010014,2]
[406694152,1772089840761,-150.0,0.00010014,2]
[406694153,1772089840775,-150.0,0.00010014,2]
[406694154,1772089840785,-1000.0,0.00010025,2]
[406694155,1772089840795,-439352.2675,0.00010025,2]
[406694157,1772089840804,-15389.7869546,0.00010031,2]
[406694159,1772089840813,-166.66,0.00010065,2]
[406694161,1772089840822,-200.0,0.00010069,2]
[406694162,1772089840832,-200.0,0.00010069,2]
[406694164,1772089840844,-150.0,0.00010103,2]
[406694165,1772089840854,-150.0,0.00010103,2]
[406694166,1772089840863,-500.0,0.00010119,2]
[406694167,1772089840872,-500.0,0.00010119,2]
[406694168,1772089840883,-500.0,0.00010119,2]
[406694169,1772089840892,-151.0,0.00010119,2]
[406694170,1772089840902,-530.7269194,0.00010119,2]
[406694171,1772089840911,-151.0,0.00010119,2]
[406694172,1772089840921,-151.0,0.00010119,2]
[406694173,1772089840930,-151.0,0.00010119,2]
[406694174,1772089840940,-151.0,0.00010119,2]
[406694175,1772089840949,-151.0,0.00010119,2]
[406694176,1772089840959,-151.0,0.00010119,2]
[406694177,1772089840968,-151.0,0.00010119,2]
[406694178,1772089840978,-151.0,0.00010119,2]
[406694179,1772089840987,-151.0,0.00010119,2]
[406694180,1772089840997,-151.0,0.00010119,2]
[406694181,1772089841007,-151.0,0.00010119,2]
[406694182,1772089841016,-151.0,0.00010119,2]
[406694183,1772089841025,-151.0,0.00010119,2]
[406694184,1772089841035,-151.0,0.00010119,2]
[406694185,1772089841044,-151.0,0.00010119,2]
[406694186,1772089841053,-151.0,0.00010119,2]
[406694187,1772089841063,-151.0,0.00010119,2]
[406694188,1772089841072,-151.0,0.00010119,2]
[406694189,1772089841081,-153.4251829,0.00010119,2]
[406694190,1772089841091,-151.0,0.00010119,2]
[406694191,1772089841102,-151.0,0.00010119,2]
[406694192,1772089841111,-151.0,0.00010119,2]
[406694193,1772089841121,-151.0,0.00010119,2]
[406694194,1772089841131,-151.0,0.00010119,2]
[406694195,1772089841140,-151.0,0.00010119,2]
[406694196,1772089841149,-151.0,0.00010119,2]
[406694197,1772089841159,-151.0,0.00010119,2]
[406694198,1772089841168,-151.0,0.00010119,2]
[406694199,1772089841177,-172.22478143,0.00010119,2]
[406694200,1772089841187,-152.85760327,0.00010119,2]
[406694201,1772089841196,-500.0,0.00010123,2]
[406694202,1772089841205,-137550.62068451,0.0001013,2]
[406694203,1772089841215,-2500.0,0.00010131,2]
[406694204,1772089841225,-150.0,0.0001015,2]
[406694205,1772089841234,-150.0,0.0001015,2]
[406694206,1772089841244,-150.0,0.0001015,2]
[406694207,1772089841253,-150.0,0.0001015,2]
[406694208,1772089841263,-150.0,0.0001015,2]
[406694209,1772089841272,-150.0,0.0001015,2]
[406694210,1772089841281,-150.0,0.0001015,2]
[406694211,1772089841291,-150.0,0.0001015,2]
[406694212,1772089841300,-150.0,0.0001015,2]
[406694213,1772089841309,-150.0,0.0001015,2]
[406694214,1772089841319,-150.0,0.00010158,2]
[406694215,1772089841328,-150.0,0.00010205,2]
[406694216,1772089841337,-150.0,0.00010205,2]
[406694217,1772089841347,-150.0,0.00010205,2]
[406694218,1772089841356,-150.0,0.00010205,2]
[406694219,1772089841365,-150.0,0.00010205,2]
[406694220,1772089841375,-174.11,0.00010212,2]
[406694221,1772089841384,-208.88429413,0.00010213,2]
[406694222,1772089841394,-215.10435237,0.00010215,2]
[406694223,1772089841403,-225442.6625784,0.00010223,2]
[406694224,1772089841414,-192902.97056553,0.00010223,2]
[406694225,1772089841947,-270.00005,0.00010223,2]
[406694226,1772089841969,-253.24101467,0.00010223,2]
[406694227,1772089841987,-15063.61176899,0.00010223,2]
[406694241,1772089845758,-1029.93288924,0.00010223,2]
[406694243,1772089845769,-2551.51389848,0.00010223,2]
[406694244,1772089845987,-407.0,0.00010223,2]
[406694245,1772089846198,-313.41758301,0.00010223,2]
[406694246,1772089846214,-722.8955016,0.00010223,2]
[406694247,1772089846225,-7535.57747682,0.00010223,2]
[406694252,1772089930782,-1600.0,9.581e-05,2]
[406694253,1772089930811,-3718.0,9.644e-05,2]
[406694254,1772089930840,-150.0,9.68e-05,2]
[406694255,1772089930914,-19064.0,9.681e-05,2]
[406694256,1772089946640,-23409.69,9.681e-05,2]
[406694257,1772089979545,-30000.0,9.681e-05,2]
[406694258,1772090132517,-1200.0,9.679e-05,2]
[406694259,1772090132545,-300.0,9.679e-05,2]
[406694260,1772090132572,-300.0,9.679e-05,2]
[406694261,1772090132600,-300.0,9.679e-05,2]
[406694262,1772090132630,-160.52009364,9.68e-05,2]
[406694263,1772090132658,-500.0,9.68e-05,2]
[406694264,1772090132685,-393.24271447,9.68e-05,2]
[406694265,1772090132712,-210.26549242,9.68e-05,2]
[406694266,1772090132740,-500.0,9.68e-05,2]
[406694267,1772090132767,-500.0,9.68e-05,2]
[406694268,1772090132800,-500.0,9.68e-05,2]
[406694269,1772090132835,-500.0,9.68e-05,2]
[406694270,1772090132867,-500.0,9.68e-05,2]
[406694271,1772090132898,-500.0,9.68e-05,2]
[406694272,1772090132934,-380.01550541,9.68e-05,2]
[406694273,1772090132960,-150.0,9.68e-05,2]
[406694274,1772090133493,-16211.91238812,9.681e-05,2]
[406694275,1772090177205,1055.37,0.0001789,120]
[406694276,1772090214934,-500.0,9.281e-05,2]
[406694277,1772090214965,-150.0,9.653e-05,2]
[406694278,1772090214994,-150.0,9.653e-05,2]
[406694279,1772090215024,-252.0,9.68e-05,2]
[406694280,1772090215095,-27896.0,9.681e-05,2]
[406694281,1772090232919,-30000.0,9.681e-05,2]
[406694282,1772090244881,-10000.0,9.681e-05,2]
[406694286,1772090574456,-152.0,0.000126,4]
[406694336,1772091032001,-1446.9,9.11e-05,2]
[406694337,1772091032108,-405.52,9.11e-05,2]
[406694338,1772091032118,-1000.0,9.176e-05,2]
[406694339,1772091032128,-933.078,9.389e-05,2]
[406694340,1772091032137,-171.0,9.48e-05,2]
[406694341,1772091032147,-150.0,9.48e-05,2]
[406694345,1772091032302,-72.50277041,9.48e-05,2]
[406694346,1772091032316,-1127.49722959,9.48e-05,2]
[406694347,1772091032326,-300.0,9.48e-05,2]
[406694348,1772091032336,-500.0,9.481e-05,2]
[406694349,1772091032347,-129699.88593521,9.481e-05,2]
[406694352,1772091038073,-571517.25665883,9.481e-05,2]
[406694354,1772091038203,-633.90315516,9.481e-05,2]
[406694355,1772091038214,-1382.06179791,9.481e-05,2]
[406694356,1772091038290,-11481.59390551,9.481e-05,2]
[406694385,1772091040336,-1143071.53932189,9.481e-05,2]
[406694386,1772091040348,-825.48384484,9.481e-05,2]
[406694623,1772091131138,161.23,4.852e-05,2]
[406694624,1772091131330,161.23,5.183e-05,2]
[406694625,1772091131535,161.23,5.513e-05,2]
[406694626,1772091131772,161.23,5.844e-05,2]
[406694627,1772091131966,161.23,6.175e-05,2]
[406694628,1772091132240,161.23,6.506e-05,2]
[406694629,1772091132637,161.23,6.837e-05,2]
[406694630,1772091132931,161.23,7.167e-05,2]
[406694631,1772091133120,161.23,7.498e-05,2]
[406694632,1772091133310,161.23,7.829e-05,2]
[406694633,1772091133708,161.23,8.16e-05,2]
[406694634,1772091134062,161.23,8.491e-05,2]
[406694635,1772091134101,161.23,8.821e-05,2]
[406694636,1772091284885,-500.0,9.01e-05,2]
[406694637,1772091284908,-150.0,9.48e-05,2]
[406694638,1772091284932,-300.0,9.48e-05,2]
[406694639,1772091284961,-300.0,9.48e-05,2]
[406694640,1772091284990,-73450.0,9.481e-05,2]
[406694641,1772091331007,-10000.0,9.381e-05,2]
[406694642,1772091337045,-90000.0,9.381e-05,2]
[406694643,1772091341120,-100000.0,9.381e-05,2]
[406694644,1772091342500,-100000.0,9.381e-05,2]
[406694645,1772091347696,-300000.0,9.381e-05,2]
[406694646,1772091349152,-300000.0,9.381e-05,2]
[406694647,1772091367505,-150.0,9.38e-05,2]
[406694648,1772091367532,-293516.0,9.381e-05,2]
[406694649,1772091393206,-1350.0,9.381e-05,2]
[406694650,1772091411184,-183.540127,9.201e-05,2]
[406694651,1772091411212,-30816.459873,9.381e-05,2]
[406694652,1772091424517,-207.0,9.38e-05,2]
[406694653,1772091424544,-333.0,9.381e-05,2]
[406694654,1772091437741,-17900.0,9.381e-05,2]
[406694861,1772092232151,-772.91,8.301e-05,2]
[406694862,1772092232162,-219.0,8.301e-05,2]
[406694863,1772092232172,-500.0,8.462e-05,2]
[406694864,1772092232182,-200.0,8.525e-05,2]
[406694865,1772092232192,-1500.0,8.605e-05,2]
[406694866,1772092232201,-2500.0,8.626e-05,2]
[406694867,1772092232211,-300.0,8.723e-05,2]
[406694868,1772092232221,-300.0,8.723e-05,2]
[406694869,1772092232230,-300.0,8.723e-05,2]
[406694870,1772092232239,-1200.0,8.723e-05,2]
[406694871,1772092232249,-150.0,8.724e-05,2]
[406694872,1772092232258,-300.0,8.724e-05,2]
[406694873,1772092232269,-580.0,8.724e-05,2]
[406694874,1772092232279,-500.0,8.725e-05,2]
[406694875,1772092232288,-500.0,8.725e-05,2]
[406694876,1772092232298,-500.0,8.725e-05,2]
[406694877,1772092232307,-314.27420492,8.725e-05,2]
[406694878,1772092232317,-162.77650151,8.725e-05,2]
[406694879,1772092232326,-500.0,8.725e-05,2]
[406694880,1772092232336,-500.0,8.725e-05,2]
[406694881,1772092232346,-500.0,8.725e-05,2]
[406694882,1772092232356,-500.0,8.725e-05,2]
[406694883,1772092232365,-479.84998321,8.725e-05,2]
[406694884,1772092232375,-500.0,8.725e-05,2]
[406694885,1772092232385,-500.0,8.725e-05,2]
[406694886,1772092232395,-176.36956909,8.725e-05,2]
[406694887,1772092232404,-500.0,8.725e-05,2]
[406694888,1772092232414,-500.0,8.725e-05,2]
[406694889,1772092232425,-500.0,8.725e-05,2]
[406694890,1772092232435,-500.0,8.725e-05,2]
[406694901,1772092232617,-500.0,8.725e-05,2]
[406694902,1772092232629,-500.0,8.725e-05,2]
[406694903,1772092232639,-500.0,8.725e-05,2]
[406694904,1772092232648,-500.0,8.725e-05,2]
[406694905,1772092232658,-500.0,8.725e-05,2]
[406694906,1772092232667,-500.0,8.725e-05,2]
[406694907,1772092232676,-500.0,8.725e-05,2]
[406694908,1772092232685,-500.0,8.725e-05,2]
[406694909,1772092232695,-500.0,8.725e-05,2]
[406694910,1772092232705,-500.0,8.725e-05,2]
[406694911,1772092232715,-500.0,8.725e-05,2]
[406694912,1772092232724,-500.0,8.725e-05,2]
[406694913,1772092232737,-500.0,8.725e-05,2]
[406694914,1772092232746,-500.0,8.725e-05,2]
[406694915,1772092232756,-500.0,8.725e-05,2]
[406694916,1772092232766,-227.90684374,8.725e-05,2]
[406694917,1772092232776,-500.0,8.725e-05,2]
[406694918,1772092232785,-500.0,8.725e-05,2]
[406694919,1772092232795,-500.0,8.725e-05,2]
[406694920,1772092232804,-500.0,8.725e-05,2]
[406694921,1772092232814,-500.0,8.725e-05,2]
[406694922,1772092232823,-500.0,8.725e-05,2]
[406694923,1772092232833,-500.0,8.725e-05,2]
[406694924,1772092232842,-500.0,8.725e-05,2]
[406694925,1772092232852,-500.0,8.725e-05,2]
[406694926,1772092232862,-500.0,8.725e-05,2]
[406694927,1772092232872,-305.54055924,8.725e-05,2]
[406694928,1772092232882,-261.46734568,8.725e-05,2]
[406694929,1772092232893,-500.0,8.725e-05,2]
[406694930,1772092232902,-500.0,8.725e-05,2]
[406694931,1772092232912,-500.0,8.725e-05,2]
[406694932,1772092232921,-368.99530026,8.725e-05,2]
[406694933,1772092232931,-500.0,8.725e-05,2]
[406694934,1772092232940,-500.0,8.725e-05,2]
[406694935,1772092232950,-511.58282486,8.725e-05,2]
[406694936,1772092232959,-500.0,8.725e-05,2]
[406694937,1772092232969,-500.0,8.725e-05,2]
[406694938,1772092232979,-312.08504742,8.725e-05,2]
[406694939,1772092232987,-500.0,8.725e-05,2]
[406694940,1772092232997,-462.95304399,8.725e-05,2]
[406694941,1772092233007,-1099.3252557,8.725e-05,2]
[406694942,1772092233016,-1099.3252557,8.725e-05,2]
[406694943,1772092233026,-1099.3252557,8.725e-05,2]
[406694944,1772092233035,-1099.3252557,8.725e-05,2]
[406694945,1772092233044,-1099.3252557,8.725e-05,2]
[406694946,1772092233054,-1099.3252557,8.725e-05,2]
[406694947,1772092233063,-1099.3252557,8.725e-05,2]
[406694948,1772092233073,-1099.3252557,8.725e-05,2]
[406694949,1772092233083,-1099.3252557,8.725e-05,2]
[406694950,1772092233093,-1099.3252557,8.725e-05,2]
[406694951,1772092233103,-418.14524136,8.725e-05,2]
[406694952,1772092233116,-681.18001434,8.725e-05,2]
[406694953,1772092233126,-1099.3252557,8.725e-05,2]
[406694954,1772092233135,-1099.3252557,8.725e-05,2]
[406694955,1772092233145,-1099.3252557,8.725e-05,2]
[406694956,1772092233155,-1099.3252557,8.725e-05,2]
[406694957,1772092233164,-562.95841592,8.725e-05,2]
[406694958,1772092233177,-536.36683978,8.725e-05,2]
[406694959,1772092233187,-1099.3252557,8.725e-05,2]
[406694960,1772092233196,-1099.3252557,8.725e-05,2]
[406694961,1772092233205,-1099.3252557,8.725e-05,2]
[406694962,1772092233215,-1099.3252557,8.725e-05,2]
[406694963,1772092233224,-1099.3252557,8.725e-05,2]
[406694964,1772092233235,-1099.3252557,8.725e-05,2]
[406694965,1772092233244,-1072.76210653,8.725e-05,2]
[406694966,1772092233257,-26.56314917,8.725e-05,2]
[406694967,1772092233267,-1099.3252557,8.725e-05,2]
[406694968,1772092233276,-1099.3252557,8.725e-05,2]
[406694969,1772092233285,-1099.3252557,8.725e-05,2]
[406694970,1772092233295,-1099.3252557,8.725e-05,2]
[406694971,1772092233305,-1099.3252557,8.725e-05,2]
[406694972,1772092233314,-1099.3252557,8.725e-05,2]
[406694973,1772092233323,-1099.3252557,8.725e-05,2]
[406694974,1772092233332,-1099.3252557,8.725e-05,2]
[406694975,1772092233342,-1099.3252557,8.725e-05,2]
[406694976,1772092233352,-1099.3252557,8.725e-05,2]
[406694977,1772092233362,-1099.3252557,8.725e-05,2]
[406694978,1772092233372,-1099.3252557,8.725e-05,2]
[406694979,1772092233381,-1099.3252557,8.725e-05,2]
[406694980,1772092233390,-1074.89580558,8.725e-05,2]
[406694981,1772092233400,-1074.89580558,8.725e-05,2]
[406694982,1772092233409,-1074.89580558,8.725e-05,2]
[406694983,1772092233419,-1074.89580558,8.725e-05,2]
[406694984,1772092233428,-1074.89580558,8.725e-05,2]
[406694985,1772092233438,-1074.89580558,8.725e-05,2]
[406694986,1772092233448,-1074.89580558,8.725e-05,2]
[406694987,1772092233458,-1074.89580558,8.725e-05,2]
[406694988,1772092233468,-1074.89580558,8.725e-05,2]
[406694989,1772092233477,-1074.89580558,8.725e-05,2]
[406694990,1772092233486,-1074.89580558,8.725e-05,2]
[406694991,1772092233496,-1074.89580558,8.725e-05,2]
[406694992,1772092233508,-1074.89580558,8.725e-05,2]
[406694993,1772092233518,-1074.89580558,8.725e-05,2]
[406694994,1772092233527,-1074.89580558,8.725e-05,2]
[406694995,1772092233537,-1074.89580558,8.725e-05,2]
[406694996,1772092233549,-1074.89580558,8.725e-05,2]
[406694997,1772092233560,-1074.89580558,8.725e-05,2]
[406694998,1772092233569,-313.02663161,8.725e-05,2]
[406694999,1772092233591,-761.86917397,8.725e-05,2]
[406695000,1772092233601,-1074.89580558,8.725e-05,2]
[406695001,1772092233612,-1074.89580558,8.725e-05,2]
[406695002,1772092233625,-1074.89580558,8.725e-05,2]
[406695003,1772092233634,-1074.89580558,8.725e-05,2]
[406695004,1772092233645,-1074.89580558,8.725e-05,2]
[406695005,1772092233655,-1074.89580558,8.725e-05,2]
[406695006,1772092233664,-1074.89580559,8.725e-05,2]
[406695007,1772092233674,-1074.89580558,8.725e-05,2]
[406695008,1772092233683,-151.559,8.726e-05,2]
[406695009,1772092233692,-36771.14521571,8.726e-05,2]
[406695011,1772092238362,-571517.25665883,8.726e-05,2]
[406695083,1772092240422,-568.9,8.726e-05,2]
[406695084,1772092240591,-621.86898814,8.726e-05,2]
[406695085,1772092240730,-1393.20373301,8.726e-05,2]
[406695086,1772092240955,-48937.78616192,8.726e-05,2]
[406695087,1772092240967,-14978.1457543,8.726e-05,2]
[406695099,1772092246053,-323367.01967764,8.726e-05,2]
[406695100,1772092246099,-3110.09112712,8.726e-05,2]
[406695101,1772092246148,-159473.37932789,8.726e-05,2]
[406695102,1772092246203,-161604.60357882,8.726e-05,2]
[406695118,1772092246382,-786.7415919,8.726e-05,2]
[406695204,1772092579848,2488.35,9e-05,10]
[406695225,1772093224648,-150.0,9.781e-05,7]
[406695226,1772093226323,-150.0,9.781e-05,7]
[406695227,1772093227332,-150.0,9.781e-05,7]
[406695228,1772093228595,-150.0,9.781e-05,7]
[406695229,1772093229955,-150.0,9.781e-05,7]
[406695230,1772093232204,-150.0,9.781e-05,7]
[406695559,1772093398849,-150.0,9.781e-05,7]
[406695560,1772093399809,-150.0,9.781e-05,7]
[406695561,1772093401577,-150.0,9.781e-05,7]
[406695562,1772093402847,-150.0,9.781e-05,7]
[406695565,1772093404059,-150.0,9.781e-05,7]
[406695585,1772093431358,-4341.66644587,7.623e-05,2]
[406695587,1772093431371,-3177.46355413,7.623e-05,2]
[406695588,1772093431380,-214.0,7.623e-05,2]
[406695589,1772093431390,-1200.0,7.736e-05,2]
[406695590,1772093431400,-507.0,7.737e-05,2]
[406695591,1772093431409,-3934.09353923,7.739e-05,2]
[406695592,1772093431429,-781.53784918,7.739e-05,2]
[406695593,1772093431441,-474.202935,7.739e-05,2]
[406695594,1772093431454,-263.36265892,7.739e-05,2]
[406695595,1772093431466,-265.84703492,7.739e-05,2]
[406695596,1772093431477,-705.89360131,7.739e-05,2]
[406695597,1772093431501,-12271.18238144,7.739e-05,2]
[406695598,1772093431510,-500.0,7.843e-05,2]
[406695599,1772093431520,-150.0,8.218e-05,2]
[406695600,1772093431530,-1000.0,8.219e-05,2]
[406695605,1772093431680,-3817.90475866,8.219e-05,2]
[406695606,1772093431695,-12979.42691393,8.219e-05,2]
[406695609,1772093431711,-3921.73832741,8.219e-05,2]
[406695610,1772093431720,-166.29,8.219e-05,2]
[406695611,1772093431731,-2552.51,8.249e-05,2]
[406695612,1772093431740,-166.67,8.333e-05,2]
[406695613,1772093431750,-1201.28134377,8.359e-05,2]
[406695614,1772093431760,-2500.0,8.385e-05,2]
[406695615,1772093431770,-2500.0,8.385e-05,2]
[406695616,1772093431779,-250.0,8.385e-05,2]
[406695617,1772093431789,-2500.0,8.385e-05,2]
[406695618,1772093431798,-2500.0,8.385e-05,2]
[406695619,1772093431807,-1431.33673012,8.4e-05,2]
[406695620,1772093431817,-2698.52873589,8.4e-05,2]
[406695621,1772093431826,-3717.94023022,8.4e-05,2]
[406695622,1772093431836,-1103.04622207,8.4e-05,2]
[406695623,1772093431845,-2045.57173107,8.4e-05,2]
[406695624,1772093431855,-1641.0,8.454e-05,2]
[406695625,1772093431864,-9999.99,8.498e-05,2]
[406695626,1772093431873,-1271.354,8.499e-05,2]
[406695628,1772093431887,-5312.87,8.499e-05,2]
[406695629,1772093431897,-869.99207104,8.5e-05,2]
[406695630,1772093431907,-1613.23512323,8.5e-05,2]
[406695631,1772093431916,-2258.65369646,8.5e-05,2]
[406695632,1772093431927,-4071.20038828,8.5e-05,2]
[406695633,1772093431936,-4594.91420135,8.5e-05,2]
[406695634,1772093431947,-9183.36972808,8.5e-05,2]
[406695635,1772093431960,-12547.99997281,8.5e-05,2]
[406695636,1772093431969,-19575.98474349,8.5e-05,2]
[406695637,1772093431978,-22374.57100677,8.5e-05,2]
[406695638,1772093431988,-299.99,8.5e-05,2]
[406695639,1772093431997,-150.99,8.5e-05,2]
[406695640,1772093432007,-9999.99,8.5e-05,2]
[406695641,1772093432016,-9999.99,8.5e-05,2]
[406695642,1772093432026,-999.99,8.5e-05,2]
[406695643,1772093432035,-9999.99,8.5e-05,2]
[406695644,1772093432045,-9999.99,8.5e-05,2]
[406695645,1772093432055,-9386.31,8.5e-05,2]
[406695646,1772093432064,-1680.0,8.51e-05,2]
[406695647,1772093432074,-32883.6844,8.525e-05,2]
[406695648,1772093432084,-382.0,8.592e-05,2]
[406695649,1772093432093,-500.0,8.592e-05,2]
[406695650,1772093432102,-432.0,8.609e-05,2]
[406695651,1772093432112,-279.0,8.648e-05,2]
[406695652,1772093432121,-908.0,8.675e-05,2]
[406695653,1772093432130,-1512.0,8.693e-05,2]
[406695654,1772093432140,-1682.0,8.711e-05,2]
[406695655,1772093432150,-458.57280982,8.725e-05,2]
[406695656,1772093432159,-329.21700489,8.725e-05,2]
[406695657,1772093432169,-500.0,8.725e-05,2]
[406695658,1772093432179,-500.0,8.725e-05,2]
[406695659,1772093432189,-201.34278305,8.725e-05,2]
[406695660,1772093432199,-500.0,8.725e-05,2]
[406695661,1772093432208,-500.0,8.725e-05,2]
[406695662,1772093432219,-500.0,8.725e-05,2]
[406695663,1772093432229,-500.0,8.725e-05,2]
[406695664,1772093432239,-500.0,8.725e-05,2]
[406695665,1772093432248,-500.0,8.725e-05,2]
[406695666,1772093432258,-500.0,8.725e-05,2]
[406695667,1772093432270,-500.0,8.725e-05,2]